bitfinex/quotes_BTCUSD_20251110
["timestamp","ask_amount","ask_price","bid_price","bid_amount"]
[1762761377909,0.00109276,106440.0,106430.0,0.74540338]
[1762761378371,0.00109276,106440.0,106430.0,0.7458724]
[1762761378922,0.00109276,106440.0,106430.0,0.74540338]
[1762761379548,0.00109276,106440.0,106430.0,0.7458724]
[1762761379985,0.00109276,106440.0,106430.0,0.74568961]
[1762761384749,0.00109276,106440.0,106430.0,0.74540338]
[1762761385800,0.00109276,106440.0,106430.0,0.72041141]
[1762761385977,0.00109276,106440.0,106430.0,0.71994239]
[1762761386176,0.00109276,106440.0,106430.0,0.72022862]
[1762761386561,0.00109276,106440.0,106430.0,0.71994239]
[1762761386939,0.00109276,106440.0,106430.0,0.72041141]
[1762761387136,0.00109276,106440.0,106430.0,0.74127704]
[1762761387351,0.00109276,106440.0,106430.0,0.75801335]
[1762761388308,0.00109276,106440.0,106430.0,0.75848312]
[1762761388865,0.00109276,106440.0,106430.0,0.75848117]
[1762761390218,0.00109276,106440.0,106430.0,0.67412695]
[1762761395150,0.00109276,106440.0,106430.0,0.6527923]
[1762761400804,0.00109276,106440.0,106430.0,0.68099262]
[1762761401339,0.00109276,106440.0,106430.0,0.76534684]
[1762761415203,0.00109276,106440.0,106430.0,0.78668149]
[1762761415766,0.00109276,106440.0,106430.0,1.12649179]
[1762761418472,0.00109276,106440.0,106430.0,0.78668149]
[1762761418995,0.00109276,106440.0,106430.0,1.30468737]
[1762761419197,0.00016259,106440.0,106430.0,1.33302628]
[1762761419410,0.00016259,106440.0,106430.0,1.36710248]
[1762761419853,0.00016259,106440.0,106430.0,1.36610248]
[1762761420049,0.00016259,106440.0,106430.0,1.36510248]
[1762761420368,0.00016259,106440.0,106430.0,1.37010248]
[1762761421399,0.0004,106480.0,106460.0,0.18786398]
[1762761421673,0.00054419,106480.0,106470.0,0.94529813]
[1762761421982,0.00054419,106480.0,106470.0,1.01875906]
[1762761422271,0.00054419,106480.0,106470.0,1.04694825]
[1762761422470,0.00147439,106480.0,106470.0,0.97937269]
[1762761422671,0.00147439,106480.0,106470.0,0.97984135]
[1762761423234,0.00147439,106480.0,106470.0,0.95155479]
[1762761423428,0.00147439,106480.0,106470.0,0.98189989]
[1762761437381,0.00147439,106480.0,106470.0,1.00269989]
[1762761440137,0.00147439,106480.0,106470.0,1.00223123]
[1762761440336,0.00147439,106480.0,106470.0,1.00269977]
[1762761445486,0.00147439,106480.0,106470.0,0.66288947]
[1762761445665,0.00147439,106480.0,106470.0,1.00269977]
[1762761446206,0.00147439,106480.0,106470.0,1.07027533]
[1762761446731,0.00147439,106480.0,106470.0,0.73046503]
[1762761447563,0.00147439,106480.0,106470.0,0.29426553]
[1762761448098,0.18930309,106480.0,106470.0,0.29426553]
[1762761448609,0.00147439,106480.0,106470.0,0.29698053]
[1762761449102,0.18930309,106480.0,106470.0,0.29698053]
[1762761450308,0.00147439,106480.0,106470.0,0.70436639]
[1762761450924,0.00147439,106480.0,106470.0,0.73002131]
[1762761455792,0.00147439,106480.0,106470.0,0.70412558]
[1762761456426,0.22859309,106480.0,106470.0,0.05570419]
[1762761456631,0.63866787,106480.0,106470.0,0.24355053]
[1762761456824,0.65625521,106480.0,106470.0,0.24355053]
[1762761457040,0.31668572,106480.0,106470.0,0.05570419]
[1762761457572,0.24618043,106480.0,106470.0,0.24155053]
[1762761457973,0.24618043,106480.0,106470.0,0.24055053]
[1762761458370,0.22859309,106480.0,106470.0,0.24055053]
[1762761462138,0.04076439,106480.0,106470.0,0.24055053]
[1762761462282,0.22859309,106480.0,106470.0,0.24055053]
[1762761462844,0.04076439,106480.0,106470.0,0.24055053]
[1762761463005,0.22859309,106480.0,106470.0,0.24055053]
[1762761463216,0.04076439,106480.0,106470.0,0.24055053]
[1762761463978,0.01774439,106480.0,106470.0,0.24055053]
[1762761465861,0.2244269,106480.0,106470.0,0.24055053]
[1762761466092,0.20557309,106480.0,106470.0,0.24055053]
[1762761466337,0.22859309,106480.0,106470.0,0.05270419]
[1762761466836,0.22859309,106480.0,106470.0,0.024515]
[1762761468176,0.22859309,106480.0,106470.0,0.21236134]
[1762761468419,0.22859309,106480.0,106470.0,0.024515]
[1762761468726,0.22859309,106480.0,106470.0,0.21236134]
[1762761469414,0.22859309,106480.0,106470.0,0.024515]
[1762761469849,0.22859309,106480.0,106470.0,0.21236134]
[1762761470565,0.22859309,106480.0,106470.0,0.024515]
[1762761471212,0.22859309,106480.0,106470.0,0.21236134]
[1762761471370,0.22859309,106480.0,106470.0,0.024515]
[1762761473564,0.22859309,106480.0,106470.0,0.21236134]
[1762761474008,0.22859309,106480.0,106470.0,0.024515]
[1762761474601,0.22859309,106480.0,106470.0,0.21236134]
[1762761475847,0.22859309,106480.0,106470.0,0.024515]
[1762761476426,0.22859309,106480.0,106470.0,0.21236134]
[1762761477262,0.22859309,106480.0,106470.0,0.024515]
[1762761488168,0.63866787,106480.0,106470.0,0.024515]
[1762761488574,0.29909838,106480.0,106470.0,0.024515]
[1762761492358,0.29909838,106480.0,106470.0,0.21236134]
[1762761492573,0.29909838,106480.0,106470.0,0.024515]
[1762761493087,0.29909838,106480.0,106470.0,0.21236134]
[1762761498531,0.29909838,106480.0,106470.0,0.024515]
[1762761503538,0.63866787,106480.0,106470.0,0.024515]
[1762761503991,0.29909838,106480.0,106470.0,0.024515]
[1762761504196,0.63866787,106480.0,106470.0,0.024515]
[1762761504414,0.65624872,106480.0,106470.0,0.024515]
[1762761505372,0.65624872,106480.0,106470.0,0.023515]
[1762761511546,0.66503388,106480.0,106470.0,0.023515]
[1762761513050,1.00503297,106480.0,106470.0,0.023515]
[1762761513258,0.99624781,106480.0,106470.0,0.023515]
[1762761515133,0.31667923,106480.0,106470.0,0.023515]
[1762761515333,0.99624781,106480.0,106470.0,0.023515]
[1762761519798,0.27738923,106480.0,106470.0,0.023515]
[1762761520024,0.18930309,106480.0,106470.0,0.21136134]
[1762761520229,0.20538309,106480.0,106470.0,0.21136134]
[1762761520436,0.54516738,106480.0,106470.0,0.21136134]
[1762761520635,0.20538309,106480.0,106470.0,0.21136134]
[1762761520788,0.27588838,106480.0,106470.0,0.023515]
[1762761521134,0.30082838,106480.0,106470.0,0.023515]
[1762761521338,0.64061267,106480.0,106470.0,0.023515]
[1762761522207,0.64061267,106480.0,106470.0,0.21136134]
[1762761522802,0.64061267,106480.0,106470.0,0.023515]
[1762761524316,0.45278397,106480.0,106470.0,0.023515]
[1762761524879,0.45278397,106480.0,106470.0,0.21136134]
[1762761525089,0.45278397,106480.0,106470.0,0.023515]
[1762761525276,0.45278397,106480.0,106470.0,0.21136134]
[1762761526346,0.04249439,106480.0,106470.0,0.21136134]
[1762761526579,0.00147439,106480.0,106470.0,0.26479134]
[1762761526795,0.81142207,106480.0,106470.0,0.023515]
[1762761527006,0.64061267,106480.0,106470.0,0.21136134]
[1762761527882,0.45278397,106480.0,106470.0,0.21136134]
[1762761528020,0.11299968,106480.0,106470.0,0.21136134]
[1762761528227,0.44669778,106480.0,106470.0,0.21136134]
[1762761528425,0.42784397,106480.0,106470.0,0.21136134]
[1762761528857,0.08805968,106480.0,106470.0,0.21136134]
[1762761529062,0.10691349,106480.0,106470.0,0.21136134]
[1762761529265,0.08805968,106480.0,106470.0,0.21136134]
[1762761530215,0.27588838,106480.0,106470.0,0.21136134]
[1762761530951,0.27588838,106480.0,106470.0,0.023515]
[1762761531149,0.29939838,106480.0,106470.0,0.023515]
[1762761531813,0.29939838,106480.0,106470.0,0.21136134]
[1762761534273,0.11156968,106480.0,106470.0,0.21136134]
[1762761535098,0.08805968,106480.0,106470.0,0.21136134]
[1762761535486,0.11138968,106480.0,106470.0,0.21136134]
[1762761535819,0.29921838,106480.0,106470.0,0.21136134]
[1762761540009,0.63900267,106480.0,106470.0,0.023515]
[1762761540691,0.65426394,106480.0,106470.0,0.023515]
[1762761540921,0.67183118,106480.0,106470.0,0.023515]
[1762761541043,0.70002954,106480.0,106470.0,0.023515]
[1762761541249,0.68476827,106480.0,106470.0,0.023515]
[1762761541670,1.02455256,106480.0,106470.0,0.023515]
[1762761541902,0.68476827,106480.0,106470.0,0.023515]
[1762761543267,0.66720103,106480.0,106470.0,0.023515]
[1762761543787,0.32741674,106480.0,106470.0,0.023515]
[1762761544323,0.66720103,106480.0,106470.0,0.023515]
[1762761547281,0.68477593,106480.0,106470.0,0.023515]
[1762761547482,0.34499164,106480.0,106470.0,0.21136134]
[1762761547693,0.68477593,106480.0,106470.0,0.21136134]
[1762761548729,0.34499164,106480.0,106470.0,0.21136134]
[1762761549149,0.68477593,106480.0,106470.0,0.21136134]
[1762761549472,0.13383294,106480.0,106470.0,0.22272134]
[1762761549672,0.04575275,106480.0,106470.0,0.58742563]
[1762761549819,0.01755439,106480.0,106470.0,0.58742563]
[1762761550020,0.01755439,106480.0,106470.0,0.24764134]
[1762761550681,0.20538309,106480.0,106470.0,0.24764134]
[1762761550901,0.20538309,106480.0,106470.0,0.22272134]
[1762761552964,0.29921838,106480.0,106470.0,0.22272134]
[1762761555788,0.29921838,106480.0,106470.0,0.034875]
[1762761556518,0.29921838,106480.0,106470.0,0.22272134]
[1762761557236,0.27588838,106480.0,106470.0,0.22272134]
[1762761558525,0.29921838,106480.0,106470.0,0.034875]
[1762761559109,0.63900267,106480.0,106470.0,0.034875]
[1762761559566,0.63900267,106480.0,106470.0,0.22272134]
[1762761559768,0.63900267,106480.0,106470.0,0.034875]
[1762761560135,0.63900267,106480.0,106470.0,0.22272134]
[1762761560346,0.63900267,106480.0,106470.0,0.023515]
[1762761562543,0.63900267,106480.0,106470.0,0.21136134]
[1762761562958,0.20538309,106480.0,106470.0,0.21136134]
[1762761563160,0.22797309,106480.0,106470.0,0.21136134]
[1762761563393,0.29847838,106480.0,106470.0,0.21136134]
[1762761564399,0.11064968,106480.0,106470.0,0.21136134]
[1762761564752,0.31733219,106480.0,106470.0,0.21136134]
[1762761564923,0.27588838,106480.0,106470.0,0.21136134]
[1762761565831,0.29847838,106480.0,106470.0,0.023515]
[1762761566047,0.29847838,106480.0,106470.0,0.21288134]
[1762761567060,0.29847838,106480.0,106470.0,0.025035]
[1762761567296,0.29847838,106480.0,106470.0,0.21288134]
[1762761570659,0.29847838,106480.0,106470.0,0.025035]
[1762761570875,0.63826267,106480.0,106470.0,0.025035]
[1762761571313,0.63826267,106480.0,106470.0,0.21288134]
[1762761572950,0.29847838,106480.0,106470.0,0.21288134]
[1762761575367,0.04014439,106480.0,106470.0,0.21288134]
[1762761575586,0.00147439,106480.0,106470.0,0.26472134]
[1762761575945,0.00147439,106480.0,106470.0,0.70018269]
[1762761576145,0.00147439,106480.0,106470.0,0.70046879]
[1762761576347,0.00147439,106480.0,106470.0,0.63289323]
[1762761577681,0.00147439,106480.0,106470.0,0.63260713]
[1762761577894,0.00147439,106480.0,106470.0,0.73080775]
[1762761578097,0.00147439,106480.0,106470.0,0.7303391]
[1762761578301,0.00147439,106480.0,106470.0,0.73080766]
[1762761578597,0.00147439,106480.0,106470.0,0.70065125]
[1762761578961,0.00147439,106480.0,106470.0,0.73080766]
[1762761579437,0.00147439,106480.0,106470.0,0.70065125]
[1762761579642,0.00147439,106480.0,106470.0,0.7313391]
[1762761579853,0.00147439,106480.0,106470.0,0.70165123]
[1762761580047,0.00147439,106480.0,106470.0,0.70146879]
[1762761580205,0.00147439,106480.0,106470.0,0.73180764]
[1762761580623,0.00147439,106480.0,106470.0,0.70165123]
[1762761584104,0.00147439,106480.0,106470.0,0.70165125]
[1762761584682,0.00147439,106480.0,106470.0,0.70118269]
[1762761584895,0.00147439,106480.0,106470.0,0.70165125]
[1762761585092,0.00147439,106480.0,106470.0,0.70118269]
[1762761585294,0.00147439,106480.0,106470.0,0.70164696]
[1762761585625,0.00147439,106480.0,106470.0,1.04087407]
[1762761585946,0.00147439,106480.0,106470.0,1.14153577]
[1762761586057,0.00147439,106480.0,106470.0,1.46453577]
[1762761588188,0.00147439,106480.0,106470.0,1.46500536]
[1762761595104,0.00147439,106480.0,106470.0,1.44578224]
[1762761597166,0.00147439,106480.0,106470.0,0.6849609]
[1762761597290,0.00147439,106480.0,106470.0,1.01504072]
[1762761600203,0.00147439,106480.0,106470.0,0.94746516]
[1762761600495,0.00147439,106480.0,106470.0,1.01491587]
[1762761602796,0.00147439,106480.0,106470.0,1.34499569]
[1762761603053,0.00147439,106480.0,106470.0,1.34499463]
[1762761603464,0.00147439,106480.0,106470.0,1.01491481]
[1762761607401,0.00147439,106480.0,106470.0,0.61738428]
[1762761607607,0.00147439,106480.0,106470.0,1.01504415]
[1762761608434,0.00147439,106480.0,106470.0,1.01704415]
[1762761608865,0.00147439,106480.0,106470.0,1.01904415]
[1762761609242,0.00147439,106480.0,106470.0,1.04877298]
[1762761610246,0.00147439,106480.0,106470.0,1.01904415]
[1762761610495,0.00147439,106480.0,106470.0,1.04877298]
[1762761610700,0.00147439,106480.0,106470.0,0.98119293]
[1762761611108,0.00147439,106480.0,106470.0,0.97619293]
[1762761611527,0.00147439,106480.0,106470.0,0.98119293]
[1762761611740,0.00147439,106480.0,106470.0,0.98519293]
[1762761612166,0.00147439,106480.0,106470.0,1.31480422]
[1762761613475,0.00147439,106480.0,106470.0,0.9847244]
[1762761613688,0.00147439,106480.0,106470.0,0.65464458]
[1762761613875,0.00147439,106480.0,106470.0,0.985194]
[1762761614102,0.00147439,106480.0,106470.0,0.9847244]
[1762761615012,0.00147439,106480.0,106470.0,1.31480422]
[1762761615234,0.00147439,106480.0,106470.0,1.4696229]
[1762761616410,0.00147439,106480.0,106470.0,0.80946326]
[1762761616615,0.00147439,106480.0,106470.0,1.4696229]
[1762761618224,0.00147439,106480.0,106470.0,1.47009143]
[1762761618836,0.00147439,106480.0,106470.0,1.38577804]
[1762761619018,0.00147439,106480.0,106470.0,1.38077804]
[1762761619442,0.00147439,106480.0,106470.0,1.38677804]
[1762761619655,0.00147439,106480.0,106470.0,1.46709143]
[1762761619959,0.00147439,106480.0,106470.0,1.47109143]
[1762761620161,0.00147439,106480.0,106470.0,1.46709143]
[1762761620586,0.00147439,106480.0,106470.0,1.47209143]
[1762761620744,0.00147439,106480.0,106470.0,0.7414265]
[1762761620916,0.00147439,106480.0,106470.0,1.07150632]
[1762761621117,0.00147439,106480.0,106470.0,0.98719293]
[1762761621866,0.00147439,106480.0,106470.0,0.65711311]
[1762761622099,0.00147439,106480.0,106470.0,0.98719293]
[1762761626446,0.00147439,106480.0,106470.0,0.65711311]
[1762761626646,0.00147439,106480.0,106470.0,0.98719293]
[1762761631041,0.00147439,106480.0,106470.0,0.65711311]
[1762761631216,0.00147439,106480.0,106470.0,0.98719293]
[1762761632451,0.00147439,106480.0,106470.0,1.31727275]
[1762761632806,0.00147439,106480.0,106470.0,1.38486656]
[1762761633055,0.00147439,106480.0,106470.0,1.40158614]
[1762761633453,0.00147439,106480.0,106470.0,1.40158722]
[1762761633668,0.00147439,106480.0,106470.0,1.31727383]
[1762761633885,0.00147439,106480.0,106470.0,1.31727381]
[1762761634838,0.00147439,106480.0,106470.0,1.2875639]
[1762761635045,0.00147439,106480.0,106470.0,1.2815639]
[1762761635242,0.00147439,106480.0,106470.0,1.2765639]
[1762761635486,0.00147439,106480.0,106470.0,0.96447462]
[1762761635692,0.00147439,106480.0,106470.0,1.3075639]
[1762761635874,0.00147439,106480.0,106470.0,0.97747359]
[1762761640571,0.00147439,106480.0,106470.0,0.64738431]
[1762761640757,0.00147439,106480.0,106470.0,0.97747359]
[1762761641193,0.00147439,106480.0,106470.0,1.30756287]
[1762761643347,0.00147439,106480.0,106470.0,1.30755855]
[1762761643693,0.00147439,106480.0,106470.0,1.3775996]
[1762761643890,0.00147439,106480.0,106470.0,1.491817]
[1762761644293,0.00147439,106480.0,106470.0,0.83210268]
[1762761644496,0.00147439,106480.0,106470.0,1.46255241]
[1762761645657,0.00147439,106480.0,106470.0,1.44955241]
[1762761645830,0.00147439,106480.0,106470.0,1.46355241]
[1762761646032,0.00147439,106480.0,106470.0,1.43155241]
[1762761646384,0.00147439,106480.0,106470.0,1.45155241]
[1762761646592,0.00147439,106480.0,106470.0,1.46555241]
[1762761646791,0.00147439,106480.0,106470.0,1.44555241]
[1762761647123,0.00147439,106480.0,106470.0,1.46555241]
[1762761654247,0.00147439,106480.0,106470.0,0.80537385]
[1762761654450,0.00147439,106480.0,106470.0,1.46555241]
[1762761654876,0.0010048,106480.0,106470.0,1.46555241]
[1762761658712,0.0010048,106480.0,106470.0,1.46555673]
[1762761665459,0.0010048,106480.0,106470.0,1.39505144]
[1762761666502,0.0010048,106480.0,106470.0,1.46555673]
[1762761671891,0.0010048,106480.0,106470.0,0.80537813]
[1762761672107,0.0010048,106480.0,106470.0,1.0644936]
[1762761672308,0.0010048,106480.0,106470.0,0.22355798]
[1762761672521,0.04417861,106480.0,106470.0,0.35502338]
[1762761672734,0.23200731,106480.0,106470.0,0.35502338]
[1762761672882,0.2131535,106480.0,106470.0,0.28740575]
[1762761673089,0.2131535,106480.0,106470.0,0.61749503]
[1762761673294,0.2131535,106480.0,106470.0,0.59749503]
[1762761673663,0.0253248,106480.0,106470.0,0.59749503]
[1762761673866,0.23200731,106480.0,106470.0,0.58349503]
[1762761674064,0.2131535,106480.0,106470.0,0.58349503]
[1762761674290,0.40880792,106480.0,106470.0,0.27207575]
[1762761674405,0.2365535,106480.0,106470.0,0.27207575]
[1762761674866,0.2365535,106480.0,106470.0,0.24388134]
[1762761675315,0.0093348,106480.0,106470.0,0.60166062]
[1762761675517,0.0093348,106480.0,106470.0,0.62598062]
[1762761675788,0.0093348,106480.0,106470.0,0.65417583]
[1762761676955,0.0010048,106480.0,106470.0,0.65417583]
[1762761677160,0.0010048,106480.0,106470.0,0.68390466]
[1762761677357,0.0010048,106480.0,106470.0,1.01399394]
[1762761677623,0.0010048,106480.0,106470.0,1.15201447]
[1762761677822,0.0010048,106480.0,106470.0,1.47501447]
[1762761677984,0.0010048,106480.0,106470.0,1.3777704]
[1762761678609,0.0010048,106480.0,106470.0,1.40749923]
[1762761681284,0.0010048,106480.0,106470.0,1.3777704]
[1762761682011,0.0010048,106480.0,106470.0,1.46225897]
[1762761688773,0.0010048,106480.0,106470.0,1.4919878]
[1762761692918,0.0010048,106480.0,106470.0,1.49245636]
[1762761693102,0.0010048,106480.0,106470.0,1.46272753]
[1762761696996,0.0010048,106480.0,106470.0,1.46270449]
[1762761698222,0.0010048,106480.0,106470.0,1.46223593]
[1762761698424,0.0010048,106480.0,106470.0,1.46270446]
[1762761698588,0.0010048,106480.0,106470.0,1.06165288]
[1762761700382,0.0010048,106480.0,106470.0,1.39173064]
[1762761701227,0.0010048,106480.0,106470.0,1.37373064]
[1762761701728,0.0010048,106480.0,106470.0,1.39373064]
[1762761702115,0.0010048,106480.0,106470.0,1.05065288]
[1762761702451,0.0010048,106480.0,106470.0,1.06465288]
[1762761705685,0.0010048,106480.0,106470.0,0.73457512]
[1762761705886,0.0010048,106480.0,106470.0,1.06465288]
[1762761711003,0.0010048,106480.0,106470.0,1.04465288]
[1762761711392,0.0010048,106480.0,106470.0,1.38273064]
[1762761711790,0.0010048,106480.0,106470.0,1.39873064]
[1762761717164,0.0010048,106480.0,106470.0,1.06865288]
[1762761717996,0.0010048,106480.0,106470.0,1.06825744]
[1762761722828,0.0010048,106480.0,106470.0,1.3983352]
[1762761723286,0.0010048,106480.0,106470.0,1.42806403]
[1762761723766,0.0010048,106480.0,106470.0,1.42975567]
[1762761724201,0.0010048,106480.0,106470.0,1.51426174]
[1762761725080,0.0010048,106480.0,106470.0,1.5137975]
[1762761725241,0.0010048,106480.0,106470.0,1.42975837]
[1762761725521,0.00021105,106480.0,106470.0,1.51424706]
[1762761725635,0.00021105,106480.0,106470.0,1.42975998]
[1762761726265,0.00021105,106480.0,106470.0,1.42929143]
[1762761726467,0.00021105,106480.0,106470.0,1.42975998]
[1762761727847,0.00021105,106480.0,106470.0,1.42929143]
[1762761728852,0.00021105,106480.0,106470.0,1.42975568]
[1762761729050,0.00021105,106480.0,106470.0,1.51421005]
[1762761730708,0.00021105,106480.0,106470.0,0.85405453]
[1762761730906,0.00021105,106480.0,106470.0,1.51421005]
[1762761737358,1e-08,106480.0,106470.0,1.55039233]
[1762761737584,0.0004,106490.0,106480.0,0.74268498]
[1762761737788,0.00044804,106490.0,106480.0,1.20825847]
[1762761738246,0.00068053,106490.0,106480.0,1.21201655]
[1762761738464,1e-08,106490.0,106480.0,1.57827659]
[1762761738673,1e-08,106490.0,106480.0,1.24819883]
[1762761739292,1e-08,106490.0,106480.0,1.57874349]
[1762761739508,1e-08,106490.0,106480.0,1.51630776]
[1762761739646,1e-08,106490.0,106480.0,1.63387961]
[1762761740170,1e-08,106490.0,106480.0,1.64987961]
[1762761741036,1e-08,106500.0,106490.0,0.91171886]
[1762761741236,1e-08,106500.0,106490.0,1.1237529]
[1762761741438,1e-08,106500.0,106490.0,1.17318069]
[1762761741653,1e-08,106500.0,106490.0,1.05514194]
[1762761741861,1e-08,106500.0,106490.0,1.05889939]
[1762761742061,1e-08,106500.0,106490.0,1.05936586]
[1762761742468,1e-08,106500.0,106490.0,1.08136586]
[1762761742678,1e-08,106500.0,106490.0,1.08089939]
[1762761743102,1e-08,106500.0,106490.0,1.09689939]
[1762761743272,1e-08,106500.0,106490.0,1.18161298]
[1762761743493,1e-08,106500.0,106490.0,1.19161297]
[1762761744288,1e-08,106500.0,106490.0,1.17561297]
[1762761744689,1e-08,106500.0,106490.0,1.17061297]
[1762761745104,1e-08,106500.0,106490.0,1.19461297]
[1762761746578,0.00023246,106500.0,106490.0,1.19461297]
[1762761748635,1e-08,106500.0,106490.0,1.19461297]
[1762761748795,0.0004,106510.0,106500.0,0.57883197]
[1762761748995,0.00044804,106510.0,106500.0,1.35818839]
[1762761749552,0.00044804,106510.0,106500.0,1.56194544]
[1762761749726,0.00044804,106510.0,106500.0,1.49462058]
[1762761749963,0.00044804,106510.0,106500.0,1.5788677]
[1762761750487,0.00044804,106510.0,106500.0,1.51062058]
[1762761751016,0.00044804,106510.0,106500.0,1.53262058]
[1762761753702,0.00044804,106510.0,106500.0,1.6168677]
[1762761754405,0.00068045,106510.0,106500.0,1.6168677]
[1762761755491,0.00068045,106510.0,106500.0,1.7625677]
[1762761755692,0.00068045,106510.0,106500.0,1.7495666]
[1762761756765,0.00068045,106510.0,106500.0,1.8622466]
[1762761756970,0.0004,106520.0,106510.0,0.18777579]
[1762761757143,0.0004,106520.0,106510.0,0.98490728]
[1762761757347,0.00063239,106520.0,106510.0,0.96612971]
[1762761757545,0.00063239,106520.0,106510.0,1.036635]
[1762761757747,0.00063239,106520.0,106510.0,1.03857313]
[1762761758193,0.00063239,106520.0,106510.0,1.0677473]
[1762761758928,0.00063239,106520.0,106510.0,1.0817473]
[1762761759494,0.00063239,106520.0,106510.0,1.10909819]
[1762761760563,0.00063239,106520.0,106510.0,1.0817473]
[1762761763041,0.00063239,106520.0,106510.0,1.10909819]
[1762761763217,0.00063239,106520.0,106510.0,1.43209819]
[1762761764420,0.00063239,106520.0,106510.0,1.36480769]
[1762761766452,0.00063239,106520.0,106510.0,1.44905481]
[1762761766864,0.00063239,106520.0,106510.0,1.46642752]
[1762761768534,0.00063239,106520.0,106510.0,1.45725335]
[1762761768741,0.0004,106540.0,106520.0,0.43916816]
[1762761769046,0.00044804,106540.0,106530.0,0.94769225]
[1762761769275,0.00044804,106540.0,106530.0,0.9289182]
[1762761769482,0.00044804,106540.0,106530.0,0.95709204]
[1762761769871,0.00044804,106540.0,106530.0,1.2127278]
[1762761770331,0.00044804,106540.0,106530.0,1.28006597]
[1762761770798,0.00044804,106540.0,106530.0,1.2247278]
[1762761771219,0.00044804,106540.0,106530.0,1.29204249]
[1762761771433,0.00044804,106540.0,106530.0,1.29523309]
[1762761771640,1e-08,106550.0,106540.0,0.41513292]
[1762761772011,0.00048047,106550.0,106540.0,1.86505772]
[1762761772220,0.00048047,106550.0,106540.0,1.90124]
[1762761772424,0.00048047,106550.0,106540.0,1.91043929]
[1762761772844,0.00048047,106550.0,106540.0,1.69666898]
[1762761773047,0.00048047,106550.0,106540.0,1.69667068]
[1762761773250,0.00048047,106550.0,106540.0,1.71867068]
[1762761773749,0.00048047,106550.0,106540.0,1.71867174]
[1762761773873,0.00048047,106550.0,106540.0,1.38837574]
[1762761774084,0.00048047,106550.0,106540.0,1.26841457]
[1762761774285,0.00048047,106550.0,106540.0,1.33513542]
[1762761774819,0.00117739,106550.0,106540.0,1.33513542]
[1762761775230,0.00117739,106550.0,106540.0,1.66496213]
[1762761775995,0.00117739,106550.0,106540.0,1.33513542]
[1762761776563,0.00117739,106550.0,106540.0,1.30957381]
[1762761777999,0.00117739,106550.0,106540.0,1.63940052]
[1762761778209,0.00117739,106550.0,106540.0,1.66916807]
[1762761779393,0.00117739,106550.0,106540.0,1.67864807]
[1762761781340,0.02595739,106550.0,106540.0,1.26821381]
[1762761781591,0.25915727,106550.0,106540.0,0.22572292]
[1762761781803,0.23775269,106550.0,106540.0,0.038]
[1762761781979,0.5675794,106550.0,106540.0,0.038]
[1762761782191,0.59386997,106550.0,106540.0,0.038]
[1762761782401,0.62204947,106550.0,106540.0,0.038]
[1762761782597,0.62204947,106550.0,106540.0,0.016]
[1762761782805,0.29222276,106550.0,106540.0,0.036]
[1762761783016,0.28345872,106550.0,106540.0,0.036]
[1762761783212,0.28345872,106550.0,106540.0,0.22372292]
[1762761783418,0.61328543,106550.0,106540.0,0.016]
[1762761783629,0.61328543,106550.0,106540.0,0.012]
[1762761783774,0.28345872,106550.0,106540.0,0.012]
[1762761783995,0.28345872,106550.0,106540.0,0.027]
[1762761784184,0.28345872,106550.0,106540.0,0.012]
[1762761784672,0.28345872,106550.0,106540.0,0.021]
[1762761785526,0.26593219,106550.0,106540.0,0.021]
[1762761786496,0.26593219,106550.0,106540.0,0.20872292]
[1762761787152,0.26593219,106550.0,106540.0,0.021]
[1762761791115,0.26593219,106550.0,106540.0,0.20872292]
[1762761791733,0.07822689,106550.0,106540.0,0.53854963]
[1762761791933,0.00117739,106550.0,106540.0,0.92095634]
[1762761792555,0.04056739,106550.0,106540.0,0.35082671]
[1762761792756,0.61063541,106550.0,106540.0,0.021]
[1762761792993,0.25645166,106550.0,106540.0,0.20872292]
[1762761793395,0.25645166,106550.0,106540.0,0.021]
[1762761793746,0.25645166,106550.0,106540.0,0.20872292]
[1762761794002,0.25645166,106550.0,106540.0,0.021]
[1762761794212,0.58627837,106550.0,106540.0,0.20872292]
[1762761794421,0.58627837,106550.0,106540.0,0.021]
[1762761794825,0.25645166,106550.0,106540.0,0.20872292]
[1762761795042,0.25645166,106550.0,106540.0,0.021]
[1762761795673,0.25645166,106550.0,106540.0,0.20872292]
[1762761796280,0.25645166,106550.0,106540.0,0.021]
[1762761796482,0.04465636,106550.0,106540.0,0.53854963]
[1762761796935,0.06874636,106550.0,106540.0,0.53854963]
[1762761797154,0.25645166,106550.0,106540.0,0.53854963]
[1762761797605,0.06874636,106550.0,106540.0,0.53854963]
[1762761798593,0.04465636,106550.0,106540.0,0.53854963]
[1762761798800,0.27530547,106550.0,106540.0,0.20872292]
[1762761799090,0.25645166,106550.0,106540.0,0.20872292]
[1762761799533,0.25645166,106550.0,106540.0,0.021]
[1762761799732,0.25645166,106550.0,106540.0,0.20872292]
[1762761800364,0.25645166,106550.0,106540.0,0.021]
[1762761801410,0.21706166,106550.0,106540.0,0.20872292]
[1762761801769,0.23236166,106550.0,106540.0,0.20872292]
[1762761801970,0.25560166,106550.0,106540.0,0.20872292]
[1762761802175,0.04465636,106550.0,106540.0,0.53854963]
[1762761802691,0.04465636,106550.0,106540.0,0.021]
[1762761802910,0.60428218,106550.0,106540.0,0.021]
[1762761803112,0.58542837,106550.0,106540.0,0.021]
[1762761804417,0.21706166,106550.0,106540.0,0.20872292]
[1762761804594,0.04530636,106550.0,106540.0,0.20872292]
[1762761804804,0.25625166,106550.0,106540.0,0.20872292]
[1762761807411,0.06854636,106550.0,106540.0,0.20872292]
[1762761807538,0.25625166,106550.0,106540.0,0.20872292]
[1762761807727,0.06854636,106550.0,106540.0,0.20872292]
[1762761808378,0.06854636,106550.0,106540.0,0.53854963]
[1762761808978,0.06854636,106550.0,106540.0,0.20872292]
[1762761809201,0.06854636,106550.0,106540.0,0.53854963]
[1762761810925,0.06854636,106550.0,106540.0,0.20872292]
[1762761811113,0.06854636,106550.0,106540.0,0.53854963]
[1762761812847,0.25625166,106550.0,106540.0,0.53854963]
[1762761813275,0.06854636,106550.0,106540.0,0.53854963]
[1762761813683,0.06854636,106550.0,106540.0,0.58909022]
[1762761814491,0.04036739,106550.0,106540.0,0.58909022]
[1762761814933,0.2469265,106550.0,106540.0,0.07154059]
[1762761815148,0.22807269,106550.0,106540.0,0.58909022]
[1762761817622,0.04036739,106550.0,106540.0,0.58909022]
[1762761818026,0.22807269,106550.0,106540.0,0.58909022]
[1762761818182,0.01712739,106550.0,106540.0,0.58909022]
[1762761818390,0.00117739,106550.0,106540.0,0.92142028]
[1762761818580,0.00117739,106550.0,106540.0,0.98814542]
[1762761818993,0.00117739,106550.0,106540.0,0.65809286]
[1762761819795,0.00117739,106550.0,106540.0,0.65837877]
[1762761819996,0.00117739,106550.0,106540.0,0.65809286]
[1762761821085,0.00117739,106550.0,106540.0,0.6585593]
[1762761821294,0.00117739,106550.0,106540.0,0.65856065]
[1762761822352,0.00117739,106550.0,106540.0,0.65809286]
[1762761823356,0.00117739,106550.0,106540.0,0.98109286]